bitfinex-derivatives/quotes_BTCF0:USTF0_20250614
["timestamp","ask_amount","ask_price","bid_price","bid_amount"]
[1749913987918,0.90992903,105000.0,104990.0,0.05948693]
[1749913988214,0.90992903,105000.0,104990.0,1.19861513]
[1749913988517,0.90992903,105000.0,104990.0,0.42805513]
[1749913988815,0.90992903,105000.0,104990.0,1.19861513]
[1749913990119,0.90992903,105000.0,104990.0,0.24989513]
[1749913990309,0.94992903,105000.0,104990.0,1.19861513]
[1749913990622,0.94992903,105000.0,104990.0,1.00820693]
[1749913990809,0.94992903,105000.0,104990.0,0.24989503]
[1749913991013,2.44992903,105000.0,104990.0,1.00820693]
[1749913991416,2.44992903,105000.0,104990.0,0.23764693]
[1749913991723,2.44992903,105000.0,104990.0,1.00820693]
[1749913991921,2.44992903,105000.0,104990.0,0.05948693]
[1749913992120,2.44992903,105000.0,104990.0,1.00824693]
[1749913994921,2.44992903,105000.0,104990.0,0.05948693]
[1749913995121,2.44992903,105000.0,104990.0,1.00792693]
[1749913995618,2.44992903,105000.0,104990.0,0.05948693]
[1749913995823,2.44992903,105000.0,104990.0,1.00792693]
[1749913996217,2.40992903,105000.0,104990.0,0.05948693]
[1749913996423,2.64992903,105000.0,104990.0,1.00792693]
[1749913996723,3.01072903,105000.0,104990.0,1.00792693]
[1749913998619,3.01072903,105000.0,104990.0,0.05948693]
[1749913998820,3.01072903,105000.0,104990.0,1.00792693]
[1749914000131,3.01372903,105000.0,104990.0,1.00792693]
[1749914004934,1.51372903,105000.0,104990.0,1.00792693]
[1749914008940,1.45202903,105000.0,104990.0,1.00792693]
[1749914009130,1.51492903,105000.0,104990.0,1.00792693]
[1749914012444,1.60408977,105000.0,104990.0,1.00792693]
[1749914013348,1.14843403,105000.0,104990.0,1.00792693]
[1749914013538,1.60408977,105000.0,104990.0,1.00792693]
[1749914018340,1.14843403,105000.0,104990.0,1.00792693]
[1749914018540,1.60408977,105000.0,104990.0,1.00792693]
[1749914022449,1.51492903,105000.0,104990.0,1.00792693]
[1749914024048,1.51492903,105000.0,104990.0,1.03962693]
[1749914025446,1.05927329,105000.0,104990.0,1.03962693]
[1749914025747,1.51492903,105000.0,104990.0,1.03962693]
[1749914029155,1.51492903,105000.0,104990.0,0.26906693]
[1749914031754,1.51492903,105000.0,104990.0,0.23736693]
[1749914032254,1.60408977,105000.0,104990.0,0.23736693]
[1749914051974,1.60440605,105000.0,104990.0,0.23736693]
[1749914053375,1.60440605,105000.0,104990.0,0.17788]
[1749914053577,1.54507967,105000.0,104990.0,0.17788]
[1749914054174,0.1904081,104990.0,104980.0,0.92190693]
[1749914054482,0.98126592,104990.0,104980.0,1.09974693]
[1749914054775,1.27126592,104990.0,104980.0,0.23736693]
[1749914054970,0.1904262,104980.0,104970.0,1.21483293]
[1749914055172,1.02825563,104980.0,104970.0,1.12556693]
[1749914055379,1.08985563,104980.0,104970.0,1.09306693]
[1749914055572,1.07985563,104980.0,104970.0,1.09306693]
[1749914055773,1.07985563,104980.0,104970.0,0.91518693]
[1749914056072,1.10985563,104980.0,104970.0,1.09302693]
[1749914056274,1.02687916,104980.0,104970.0,1.03354]
[1749914056480,1.17687916,104980.0,104970.0,1.03354]
[1749914056675,1.17687916,104980.0,104970.0,1.03754]
[1749914056676,1.18654107,104980.0,104970.0,1.03754]
[1749914056883,1.16654107,104980.0,104970.0,1.03754]
[1749914057177,1.18654107,104980.0,104970.0,0.8597]
[1749914057382,1.17654107,104980.0,104970.0,1.03754]
[1749914057581,1.16654107,104980.0,104970.0,1.03754]
[1749914058786,1.17654107,104980.0,104970.0,1.00484]
[1749914059179,1.16654107,104980.0,104970.0,1.00484]
[1749914059378,1.17654107,104980.0,104970.0,1.00484]
[1749914059582,1.03654107,104980.0,104970.0,1.00484]
[1749914059887,1.18654107,104980.0,104970.0,0.18184]
[1749914060086,1.35654107,104980.0,104970.0,0.18184]
[1749914063088,1.29711654,104980.0,104970.0,0.18184]
[1749914063282,1.28745463,104980.0,104970.0,0.18184]
[1749914063488,1.28745463,104980.0,104970.0,0.21274]
[1749914064188,1.29701877,104980.0,104970.0,0.21274]
[1749914064388,1.29701877,104980.0,104970.0,0.4031844]
[1749914064687,1.29701877,104980.0,104970.0,0.21274]
[1749914064885,1.28004174,104980.0,104970.0,0.21274]
[1749914065489,1.29700301,104980.0,104970.0,0.21274]
[1749914071390,1.29700301,104980.0,104970.0,0.4031845]
[1749914071592,1.29700301,104980.0,104970.0,0.4352845]
[1749914072090,1.29700301,104980.0,104970.0,0.24484]
[1749914072595,1.29700301,104980.0,104970.0,0.4352845]
[1749914072793,0.93620301,104980.0,104970.0,0.4352845]
[1749914073092,0.51223887,104980.0,104970.0,0.69461237]
[1749914073389,0.51223887,104980.0,104970.0,0.8275845]
[1749914081192,0.51223887,104980.0,104970.0,0.88707143]
[1749914082097,0.5716634,104980.0,104970.0,0.88707143]
[1749914084795,0.6019634,104980.0,104970.0,0.88707143]
[1749914090488,0.6019634,104980.0,104970.0,0.52627143]
[1749914099707,0.6019634,104980.0,104970.0,0.88707143]
[1749914103010,0.6019634,104980.0,104970.0,0.70923143]
[1749914103206,0.6019634,104980.0,104970.0,1.65755143]
[1749914104905,0.54253887,104980.0,104970.0,1.5980645]
[1749914114214,0.57563887,104980.0,104970.0,1.5980645]
[1749914117015,0.57563887,104980.0,104970.0,0.6497445]
[1749914117216,0.60673887,104980.0,104970.0,1.5979845]
[1749914117414,0.60673887,104980.0,104970.0,1.5664845]
[1749914119616,0.60673887,104980.0,104970.0,0.9522]
[1749914120119,0.60673887,104980.0,104970.0,0.004]
[1749914120416,0.60673887,104980.0,104970.0,0.9522]
[1749914121018,0.60673887,104980.0,104970.0,1.1426445]
[1749914122722,0.60673887,104980.0,104970.0,0.9522]
[1749914123227,0.60673887,104980.0,104970.0,1.1426444]
[1749914124125,0.60673887,104980.0,104970.0,0.9522]
[1749914124427,0.60673887,104980.0,104970.0,0.004]
[1749914124620,0.96753887,104980.0,104970.0,0.9522]
[1749914124816,1.34753887,104980.0,104970.0,0.004]
[1749914125020,1.01753887,104980.0,104970.0,0.9522]
[1749914125222,0.96753887,104980.0,104970.0,0.9522]
[1749914125417,1.01753887,104980.0,104970.0,0.9522]
[1749914125617,1.15753887,104980.0,104970.0,0.004]
[1749914125925,1.15753887,104980.0,104970.0,0.9522]
[1749914126126,1.38536674,104980.0,104970.0,0.004]
[1749914126425,1.38536674,104980.0,104970.0,0.18176]
[1749914126822,1.38536674,104980.0,104970.0,0.004]
[1749914127023,1.56312674,104980.0,104970.0,0.004]
[1749914128127,1.56312674,104980.0,104970.0,0.002]
[1749914128327,0.1904445,104970.0,104960.0,0.96697705]
[1749914128528,1.10150024,104970.0,104960.0,0.96697705]
[1749914128727,1.10150024,104970.0,104960.0,0.17790255]
[1749914129522,1.10150024,104970.0,104960.0,0.17990255]
[1749914130532,1.10150024,104970.0,104960.0,0.37036515]
[1749914130720,1.10150024,104970.0,104960.0,0.37136515]
[1749914130926,0.74070024,104970.0,104960.0,0.37136515]
[1749914131726,0.74070024,104970.0,104960.0,0.76246515]
[1749914133833,1.11070024,104970.0,104960.0,0.76246515]
[1749914134135,0.74070024,104970.0,104960.0,0.76246515]
[1749914136837,1.12070024,104970.0,104960.0,0.76246515]
[1749914137138,0.74070024,104970.0,104960.0,0.76246515]
[1749914137643,0.74070024,104970.0,104960.0,0.57200255]
[1749914137943,0.74070024,104970.0,104960.0,0.76246515]
[1749914138443,0.2850445,104970.0,104960.0,0.76246515]
[1749914138645,0.41827237,104970.0,104960.0,0.99029302]
[1749914138834,0.1904445,104970.0,104960.0,1.40389302]
[1749914139034,0.41827237,104970.0,104960.0,1.40389302]
[1749914140045,0.41827237,104970.0,104960.0,2.22713302]
[1749914140544,0.41827237,104970.0,104960.0,2.31642536]
[1749914140740,0.41827237,104970.0,104960.0,2.37587627]
[1749914141140,0.1904445,104970.0,104960.0,2.37587627]
[1749914141335,0.1904445,104970.0,104960.0,2.31642536]
[1749914150747,0.1904445,104970.0,104960.0,2.39118419]
[1749914160153,0.23818675,104980.0,104970.0,0.1904445]
[1749914160357,0.00014255,104980.0,104970.0,2.34267258]
[1749914160552,0.43417351,105010.0,105000.0,0.1903901]
[1749914160857,0.43417351,105010.0,105000.0,2.09377797]
[1749914160858,0.2123,105010.0,105000.0,2.09377797]
[1749914161055,0.2226719,105010.0,105000.0,2.30541072]
[1749914161364,0.23875265,105020.0,105010.0,0.1903719]
[1749914161547,0.23875265,105020.0,105010.0,1.46499896]
[1749914161756,0.49888052,105020.0,105010.0,1.4055919]
[1749914161953,0.52908052,105020.0,105010.0,1.18392]
[1749914162158,0.52908052,105020.0,105010.0,2.13996]
[1749914162357,0.52908052,105020.0,105010.0,2.3303319]
[1749914162754,1.02908052,105020.0,105010.0,2.3303319]
[1749914162950,1.02908052,105020.0,105010.0,2.330372]
[1749914163358,1.00366423,105020.0,105010.0,2.330372]
[1749914163557,1.00466423,105020.0,105010.0,2.330372]
[1749914165161,1.00766423,105020.0,105010.0,2.330372]
[1749914167666,0.80525265,105020.0,105010.0,2.330372]
[1749914171057,0.788667,105020.0,105010.0,2.330372]
[1749914172966,0.288667,105020.0,105010.0,2.330372]
[1749914175658,0.288667,105020.0,105010.0,2.14]
[1749914175659,0.285667,105020.0,105010.0,2.14]
[1749914175857,0.288667,105020.0,105010.0,2.3303719]
[1749914176063,0.288667,105020.0,105010.0,2.14]
[1749914176264,0.49107858,105020.0,105010.0,2.3303719]
[1749914176966,0.49107858,105020.0,105010.0,2.14]
[1749914177165,0.49107858,105020.0,105010.0,2.3303719]
[1749914177562,0.288667,105020.0,105010.0,2.14]
[1749914177768,0.49107858,105020.0,105010.0,2.3303719]
[1749914182770,0.49107858,105020.0,105010.0,1.3742919]
[1749914182971,0.49107858,105020.0,105010.0,2.3333319]
[1749914183372,0.51637946,105020.0,105010.0,2.3333319]
[1749914183760,0.95717946,105020.0,105010.0,0.82312]
[1749914184073,0.87717946,105020.0,105010.0,0.82312]
[1749914184282,1.25717946,105020.0,105010.0,1.7822]
[1749914186270,1.3166159,105020.0,105010.0,1.7822]
[1749914187173,1.3166159,105020.0,105010.0,1.972572]
[1749914189269,1.40577057,105020.0,105010.0,1.972572]
[1749914189669,0.67497057,105020.0,105010.0,1.972572]
[1749914189876,0.67497057,105020.0,105010.0,1.973092]
[1749914191179,0.5858159,105020.0,105010.0,1.973092]
[1749914192480,0.190372,105010.0,105000.0,1.13544582]
[1749914192672,0.41808446,105010.0,105000.0,1.13544582]
[1749914192978,0.41808446,105010.0,105000.0,0.90773336]
[1749914193178,0.41808446,105010.0,105000.0,2.09512582]
[1749914193477,0.45088446,105010.0,105000.0,0.33904226]
[1749914193677,0.9016209,105010.0,105000.0,1.01962961]
[1749914193875,0.9016209,105010.0,105000.0,0.96022255]
[1749914194281,2.4016209,105010.0,105000.0,0.96022255]
[1749914194780,2.4026209,105010.0,105000.0,0.96022255]
[1749914195280,2.37738946,105010.0,105000.0,0.96022255]
[1749914198879,2.01658946,105010.0,105000.0,0.96022255]
[1749914199882,1.95715302,105010.0,105000.0,0.96022255]
[1749914200077,2.01658946,105010.0,105000.0,0.96022255]
[1749914200283,2.37738946,105010.0,105000.0,0.96022255]
[1749914200582,2.37738946,105010.0,105000.0,1.15061255]
[1749914202280,1.81410844,105010.0,105000.0,1.51141255]
[1749914202481,1.724172,105010.0,105000.0,1.57081961]
[1749914202682,1.724172,105010.0,105000.0,1.63401961]
[1749914203479,1.691372,105010.0,105000.0,1.63401961]
[1749914204486,0.191372,105010.0,105000.0,1.63401961]
[1749914213598,0.25080844,105010.0,105000.0,1.63401961]
[1749914214098,0.191372,105010.0,105000.0,1.63401961]
[1749914214499,0.25080844,105010.0,105000.0,1.63401961]
[1749914215002,0.191372,105010.0,105000.0,1.63401961]
[1749914215298,0.41910805,105010.0,105000.0,1.86175566]
[1749914215798,0.41910805,105010.0,105000.0,1.63401961]
[1749914215999,0.41910805,105010.0,105000.0,1.86175566]
[1749914216401,0.47854449,105010.0,105000.0,1.86175566]
[1749914216796,0.47854449,105010.0,105000.0,1.89415566]
[1749914218110,0.47854449,105010.0,105000.0,1.66641961]
[1749914218406,0.47854449,105010.0,105000.0,1.89415566]
[1749914219594,0.47854449,105010.0,105000.0,1.66641961]
[1749914219797,0.47854449,105010.0,105000.0,1.89415566]
[1749914220902,0.47854449,105010.0,105000.0,1.11559566]
[1749914221106,0.47854449,105010.0,105000.0,1.66537961]
[1749914221306,0.51014449,105010.0,105000.0,1.66537961]
[1749914222803,0.87094449,105010.0,105000.0,1.01870961]
[1749914223006,0.93544449,105010.0,105000.0,1.01870961]
[1749914223406,0.93958284,105010.0,105000.0,1.01870961]
[1749914223810,0.93958284,105010.0,105000.0,0.95930255]
[1749914224107,0.93958284,105010.0,105000.0,1.20909951]
[1749914224305,0.57878284,105010.0,105000.0,1.20909951]
[1749914224505,0.57464449,105010.0,105000.0,1.20909951]
[1749914225111,0.93544449,105010.0,105000.0,1.20909951]
[1749914225806,0.93544449,105010.0,105000.0,1.01870961]
[1749914226408,0.93544449,105010.0,105000.0,1.20909951]
[1749914228413,0.93544449,105010.0,105000.0,1.01870961]
[1749914229715,0.93958284,105010.0,105000.0,1.01870961]
[1749914230013,0.93958284,105010.0,105000.0,1.20909971]
[1749914230415,0.57878284,105010.0,105000.0,1.20909971]
[1749914231513,0.57464449,105010.0,105000.0,1.20909971]
[1749914233406,0.28240844,105010.0,105000.0,2.17763576]
[1749914233607,0.41910805,105010.0,105000.0,2.36035541]
[1749914234008,0.41910805,105010.0,105000.0,1.98035541]
[1749914237815,0.41910805,105010.0,105000.0,1.75261936]
[1749914238015,0.41910805,105010.0,105000.0,1.98035541]
[1749914238314,0.41910805,105010.0,105000.0,1.75261936]
[1749914238813,0.45030805,105010.0,105000.0,1.75261936]
[1749914239011,0.222572,105010.0,105000.0,1.75261936]
[1749914239207,0.45030805,105010.0,105000.0,1.75261936]
[1749914239914,0.50974449,105010.0,105000.0,1.66349971]
[1749914241311,0.50974449,105010.0,105000.0,1.75261936]
[1749914241616,0.50974449,105010.0,105000.0,1.66349971]
[1749914242017,0.50974449,105010.0,105000.0,1.75261936]
[1749914242507,0.50974449,105010.0,105000.0,1.66349971]
[1749914245017,0.50974449,105010.0,105000.0,1.89123576]
[1749914247224,0.50974449,105010.0,105000.0,1.66349971]
[1749914248824,0.54598284,105010.0,105000.0,1.66349971]
[1749914249923,0.54184449,105010.0,105000.0,1.66349971]
[1749914253424,0.54184449,105010.0,105000.0,1.75261936]
[1749914253915,1.56561255,105010.0,105000.0,0.05954961]
[1749914254114,1.80837078,105010.0,105000.0,0.00014255]
[1749914254318,0.20693438,105000.0,104990.0,0.24084706]
[1749914254524,0.1904082,104990.0,104980.0,1.10732671]
[1749914254819,0.93294927,104990.0,104980.0,0.05940706]
[1749914255020,0.1904263,104980.0,104970.0,1.12912706]
[1749914255225,0.90136737,104980.0,104970.0,1.84108706]
[1749914255425,0.84196235,104980.0,104970.0,1.84108706]
[1749914255923,0.84196235,104980.0,104970.0,0.88228706]
[1749914256116,0.84196235,104980.0,104970.0,1.06372706]
[1749914256314,1.20196235,104980.0,104970.0,0.82288]
[1749914256518,0.84196235,104980.0,104970.0,1.00532]
[1749914256823,1.20196235,104980.0,104970.0,1.78288]
[1749914257024,0.84196235,104980.0,104970.0,1.78288]
[1749914257224,0.81680954,104980.0,104970.0,1.78288]
[1749914257526,0.81680954,104980.0,104970.0,1.784]
[1749914258225,1.16680954,104980.0,104970.0,0.18344]
[1749914258523,1.21332017,104980.0,104970.0,0.96104]
[1749914258825,0.84332017,104980.0,104970.0,0.96104]
[1749914260828,0.83372495,104980.0,104970.0,0.96104]
[1749914262132,0.84309961,104980.0,104970.0,0.96104]
[1749914263031,0.9205563,104980.0,104970.0,0.96104]
[1749914263230,0.91118164,104980.0,104970.0,0.96104]
[1749914265434,0.92066351,104980.0,104970.0,0.96104]
[1749914266534,0.92066351,104980.0,104970.0,0.18344]
[1749914267632,1.25066351,104980.0,104970.0,0.18344]
[1749914267835,0.92066351,104980.0,104970.0,0.18344]
[1749914268838,1.24066351,104980.0,104970.0,0.18344]
[1749914269338,0.92066351,104980.0,104970.0,0.18344]
[1749914271133,0.68718027,104980.0,104970.0,0.3738844]
[1749914271337,0.20734171,104980.0,104970.0,1.27876764]
[1749914271531,0.20734171,104980.0,104970.0,1.31146764]
[1749914271737,0.20734171,104980.0,104970.0,1.3708747]
[1749914272932,0.20734171,104980.0,104970.0,2.1939947]
[1749914280348,0.20734171,104980.0,104970.0,2.28311435]
[1749914283155,0.20734171,104980.0,104970.0,2.22370729]
[1749914286249,0.20734171,104980.0,104970.0,2.88652478]
[1749914288756,0.20734171,104980.0,104970.0,3.08910802]
[1749914294257,0.20734171,104980.0,104970.0,3.02970729]
[1749914297459,0.20734171,104980.0,104970.0,2.52712405]
[1749914297660,0.20734171,104980.0,104970.0,3.02970729]
[1749914299364,0.20734171,104980.0,104970.0,3.00970729]
[1749914299864,0.20734171,104980.0,104970.0,2.68970729]
[1749914300162,0.20734171,104980.0,104970.0,2.52712405]
[1749914301364,0.43518165,104980.0,104970.0,2.75496399]
[1749914301559,0.43518165,104980.0,104970.0,2.52712405]
[1749914301866,0.43518165,104980.0,104970.0,2.75496399]
[1749914302060,0.46688165,104980.0,104970.0,2.75496399]
[1749914302254,0.46688165,104980.0,104970.0,1.37252399]
[1749914302459,0.52998165,104980.0,104970.0,2.68972399]
[1749914303966,0.23904171,104980.0,104970.0,2.59160434]
[1749914304166,0.20734171,104980.0,104970.0,2.95180434]
[1749914304666,0.20734171,104980.0,104970.0,3.0708608]
[1749914304864,0.20734171,104980.0,104970.0,2.95180434]
[1749914305165,0.20734171,104980.0,104970.0,3.0708608]
[1749914306866,0.20734171,104980.0,104970.0,3.1030608]
[1749914307264,0.20734171,104980.0,104970.0,2.98400434]
[1749914311970,0.43518165,104980.0,104970.0,2.98400434]
[1749914313671,0.43518165,104980.0,104970.0,2.62380434]
[1749914313866,0.51426624,104980.0,104970.0,2.84307767]
[1749914315772,0.51426624,104980.0,104970.0,1.65883773]
[1749914315973,0.51426624,104980.0,104970.0,1.23483773]
[1749914316174,0.51426624,104980.0,104970.0,2.06015773]
[1749914317174,0.51426624,104980.0,104970.0,1.09471333]
[1749914317379,0.51426624,104980.0,104970.0,2.06083763]
[1749914317577,1.25506624,104980.0,104970.0,1.92990995]
[1749914317775,1.28447126,104980.0,104970.0,0.88463662]
[1749914317970,0.93447126,104980.0,104970.0,1.01755662]
[1749914318973,1.35223165,104980.0,104970.0,1.01755662]
[1749914319167,1.01323165,104980.0,104970.0,0.95704]
[1749914319373,0.98799832,104980.0,104970.0,0.95704]
[1749914319774,1.36799832,104980.0,104970.0,0.95704]
[1749914319970,0.98799832,104980.0,104970.0,0.95704]
[1749914320375,0.98799832,104980.0,104970.0,0.95604]
[1749914320680,0.99099832,104980.0,104970.0,0.95604]
[1749914320980,1.36099832,104980.0,104970.0,0.95604]
[1749914321181,0.99099832,104980.0,104970.0,0.95604]
[1749914322380,1.34099832,104980.0,104970.0,0.95604]
[1749914322570,0.99099832,104980.0,104970.0,0.95604]
[1749914322880,1.37099832,104980.0,104970.0,0.95604]
[1749914323079,0.99099832,104980.0,104970.0,0.95604]
[1749914323471,1.34099832,104980.0,104970.0,0.95604]
[1749914323672,0.99099832,104980.0,104970.0,0.95604]
[1749914327286,1.35099832,104980.0,104970.0,0.95604]
[1749914327586,0.99099832,104980.0,104970.0,0.95604]
[1749914328382,1.36099832,104980.0,104970.0,0.95604]
[1749914328590,0.99099832,104980.0,104970.0,0.95604]
[1749914330888,1.31099832,104980.0,104970.0,0.95604]
[1749914331188,0.99099832,104980.0,104970.0,0.95604]
[1749914332690,1.37099832,104980.0,104970.0,0.95604]
[1749914332991,0.99099832,104980.0,104970.0,0.95604]
[1749914333487,1.33099832,104980.0,104970.0,0.95604]
[1749914333683,0.99099832,104980.0,104970.0,0.95604]
[1749914334187,1.33099832,104980.0,104970.0,0.18032]
[1749914334691,1.40015299,104980.0,104970.0,0.18032]
[1749914335087,1.33099832,104980.0,104970.0,0.18032]
[1749914335292,0.1904444,104970.0,104960.0,2.15459757]
[1749914335495,0.5512444,104970.0,104960.0,2.21569757]
[1749914335695,0.1904444,104970.0,104960.0,2.21569757]
[1749914335995,0.1904444,104970.0,104960.0,2.16808207]
[1749914336698,0.1914444,104970.0,104960.0,2.16808207]
[1749914339199,0.41934989,104970.0,104960.0,2.39598756]
[1749914339588,0.001,104970.0,104960.0,3.07678756]
[1749914339792,0.001,104970.0,104960.0,3.30469305]
[1749914340195,0.1914443,104970.0,104960.0,3.07678756]
[1749914340603,0.001,104970.0,104960.0,3.30469305]
[1749914340800,0.001,104970.0,104960.0,3.24517643]
[1749914341099,0.43959154,104990.0,104980.0,0.1904262]
[1749914341294,0.43959154,104990.0,104980.0,2.04934027]
[1749914341487,0.43959154,104990.0,104980.0,2.17774027]
[1749914341690,0.43959154,104990.0,104980.0,1.6052662]
[1749914342286,0.35043687,104990.0,104980.0,1.6052662]
[1749914347201,0.35043687,104990.0,104980.0,1.66470198]
[1749914348997,0.55291094,104990.0,104980.0,1.66470198]
[1749914351207,0.35043687,104990.0,104980.0,1.66470198]
[1749914357107,0.35043687,104990.0,104980.0,1.6052662]
[1749914360305,0.35043687,104990.0,104980.0,1.66470198]
[1749914360506,0.35043687,104990.0,104980.0,1.6052662]
[1749914361110,0.35043687,104990.0,104980.0,1.66470198]
[1749914363320,0.57824969,104990.0,104980.0,1.8925148]
[1749914365414,0.57824969,104990.0,104980.0,1.90221097]
[1749914366100,0.57824969,104990.0,104980.0,1.8925148]
[1749914369113,0.63764568,104990.0,104980.0,1.92223269]
[1749914369300,0.57824969,104990.0,104980.0,1.92223269]
[1749914370312,0.57824969,104990.0,104980.0,1.93192168]
[1749914370507,0.30283097,104990.0,104980.0,2.30192168]
[1749914370811,0.25522637,104990.0,104980.0,2.30192168]
[1749914371208,0.25522637,104990.0,104980.0,1.70410886]
[1749914371402,0.25522637,104990.0,104980.0,2.31192168]
[1749914372511,0.25522637,104990.0,104980.0,2.31080168]
[1749914373303,0.25522637,104990.0,104980.0,2.28546092]
[1749914382020,0.25522637,104990.0,104980.0,1.77213987]
[1749914382215,0.28632637,104990.0,104980.0,1.77213987]
[1749914382420,0.28632637,104990.0,104980.0,1.69213987]
[1749914382613,0.31672637,104990.0,104980.0,1.69213987]
[1749914383123,0.32086472,104990.0,104980.0,1.62593987]
[1749914383318,0.35086472,104990.0,104980.0,1.59373987]
[1749914383713,0.93333678,104990.0,104980.0,0.44995367]
[1749914383919,1.38329145,104990.0,104980.0,0.9546]
[1749914384114,1.44268744,104990.0,104980.0,0.9546]
[1749914384521,1.35353277,104990.0,104980.0,0.9546]
[1749914384717,1.35353277,104990.0,104980.0,0.95468]
[1749914385022,1.35653277,104990.0,104980.0,0.95468]
[1749914385410,1.14406071,104990.0,104980.0,0.95468]
[1749914385617,1.34653277,104990.0,104980.0,0.95468]
[1749914386020,1.34239442,104990.0,104980.0,0.95468]
[1749914389123,1.34653277,104990.0,104980.0,0.95468]
[1749914390523,1.34653277,104990.0,104980.0,1.1451063]
[1749914391023,0.72912236,104990.0,104980.0,1.5059063]
[1749914391221,0.40912236,104990.0,104980.0,1.5059063]
[1749914391626,0.72912236,104990.0,104980.0,1.5059063]
[1749914391827,0.40912236,104990.0,104980.0,1.5059063]
[1749914393223,0.76912236,104990.0,104980.0,1.5059063]
[1749914393528,0.40912236,104990.0,104980.0,1.5059063]
[1749914394420,0.40912236,104990.0,104980.0,1.5371063]
[1749914396932,0.02020297,104990.0,104980.0,3.07128814]
[1749914397226,0.21061097,104990.0,104980.0,3.13698814]
[1749914398029,0.20861097,104990.0,104980.0,3.13698814]
[1749914398327,0.20861097,104990.0,104980.0,3.13898814]
[1749914399623,0.20761097,104990.0,104980.0,3.13998814]
[1749914400429,0.20761097,104990.0,104980.0,3.13898814]
[1749914400630,0.20761097,104990.0,104980.0,3.13998814]
[1749914406527,0.20761097,104990.0,104980.0,2.18530814]
[1749914406732,0.20761097,104990.0,104980.0,2.57767608]
[1749914407633,0.23921097,104990.0,104980.0,2.57767608]
[1749914408433,0.24334932,104990.0,104980.0,2.57767608]
[1749914413337,0.23921097,104990.0,104980.0,2.57767608]
[1749914416442,0.24334932,104990.0,104980.0,2.57767608]
[1749914417444,0.23921097,104990.0,104980.0,2.57767608]
[1749914421044,0.23921097,104990.0,104980.0,2.51819997]
[1749914421250,0.23921097,104990.0,104980.0,2.745991]
[1749914422950,0.467002,104990.0,104980.0,2.745991]
[1749914423348,0.467002,104990.0,104980.0,1.791151]
[1749914423551,0.467002,104990.0,104980.0,2.648211]
[1749914423753,0.530902,104990.0,104980.0,2.648211]
[1749914424553,0.53504035,104990.0,104980.0,2.648211]
[1749914426559,0.530902,104990.0,104980.0,2.648211]
[1749914426949,0.530902,104990.0,104980.0,2.679911]
[1749914427154,0.530902,104990.0,104980.0,2.709911]
[1749914427659,0.30311097,104990.0,104980.0,2.709911]
[1749914427860,0.23921097,104990.0,104980.0,3.019911]
[1749914428060,0.20761097,104990.0,104980.0,3.052011]
[1749914429266,0.20761097,104990.0,104980.0,3.02669048]
[1749914435565,0.20761097,104990.0,104980.0,2.93753681]
[1749914436168,0.20761097,104990.0,104980.0,3.05659327]
[1749914436468,0.20761097,104990.0,104980.0,2.93753681]
[1749914437067,0.20722994,104990.0,104980.0,2.93753681]
[1749914438268,0.20722994,104990.0,104980.0,3.02677416]
[1749914440369,0.20722994,104990.0,104980.0,2.80677416]
[1749914440672,0.20722994,104990.0,104980.0,3.03677416]
[1749914444077,0.20722994,104990.0,104980.0,2.51430365]
[1749914444275,0.20722994,104990.0,104980.0,2.55430365]
[1749914444476,0.27142994,104990.0,104980.0,2.55430365]
[1749914445878,0.27556829,104990.0,104980.0,2.55430365]
[1749914446472,0.24356829,104990.0,104980.0,2.55430365]
[1749914446873,0.23942994,104990.0,104980.0,2.75677416]
[1749914448882,0.23942994,104990.0,104980.0,3.07677416]
[1749914449180,0.23942994,104990.0,104980.0,2.58430365]
[1749914449378,0.23942994,104990.0,104980.0,3.06209044]
[1749914450579,0.22275055,104990.0,104980.0,3.06209044]
[1749914454382,0.45053734,104990.0,104980.0,3.06209044]
[1749914455983,0.45467569,104990.0,104980.0,3.06209044]
[1749914457183,0.45467569,104990.0,104980.0,3.06245044]
[1749914458286,0.48657569,104990.0,104980.0,3.06245044]
[1749914458583,0.48657569,104990.0,104980.0,2.10813044]
[1749914458781,0.51817569,104990.0,104980.0,3.03047044]
[1749914459084,0.51817569,104990.0,104980.0,2.75047044]
[1749914459783,0.51817569,104990.0,104980.0,2.72047044]
[1749914459985,0.51817569,104990.0,104980.0,1.76603044]
[1749914460284,0.51817569,104990.0,104980.0,2.72039044]
[1749914464484,0.2903889,104990.0,104980.0,2.72039044]
[1749914464687,0.51817569,104990.0,104980.0,2.72039044]
[1749914465686,0.51817569,104990.0,104980.0,3.02039044]
[1749914466285,0.51403734,104990.0,104980.0,3.02039044]
[1749914467388,0.51403734,104990.0,104980.0,3.05239044]
[1749914470393,0.48243734,104990.0,104980.0,3.05239044]
[1749914470692,0.48243734,104990.0,104980.0,3.08549044]
[1749914470888,0.25465055,104990.0,104980.0,3.08549044]
[1749914471386,0.22275055,104990.0,104980.0,3.08549044]
[1749914471687,0.00014255,104990.0,104980.0,3.11530955]
[1749914471892,0.20738703,105000.0,104990.0,0.190408]
[1749914472092,0.20738703,105000.0,104990.0,1.27291456]
[1749914479595,0.20738703,105000.0,104990.0,1.28236448]
[1749914479895,0.43517382,105000.0,104990.0,1.28236448]
[1749914480890,0.20738703,105000.0,104990.0,1.28236448]
[1749914486601,0.23812145,105010.0,104990.0,1.2305235]
[1749914486895,0.28571835,105010.0,105000.0,2.79643626]
[1749914487201,0.28571835,105010.0,105000.0,3.12643626]
[1749914487699,0.23812145,105010.0,105000.0,3.12643626]
[1749914488399,0.23812145,105010.0,105000.0,3.35422305]
[1749914488699,0.19052615,105010.0,105000.0,3.35522305]
[1749914489200,0.19052615,105010.0,105000.0,3.10203111]
[1749914489501,0.19052615,105010.0,105000.0,3.10400913]
[1749914492101,0.00014255,105010.0,105000.0,3.10400913]
[1749914492304,0.19051435,105010.0,105000.0,3.0446312]
[1749914495802,0.00014255,105010.0,105000.0,3.0446312]
[1749914499208,0.19051435,105010.0,105000.0,2.84128956]
[1749914499404,0.19051435,105010.0,105000.0,3.0436712]
[1749914500411,0.19051435,105010.0,105000.0,3.06192104]
[1749914504710,0.19051435,105010.0,105000.0,3.06280104]
[1749914505812,0.22381435,105010.0,105000.0,3.06280104]
[1749914509320,0.22381435,105010.0,105000.0,3.31578044]
[1749914510316,0.22381435,105010.0,105000.0,3.08809992]
[1749914511611,0.22381435,105010.0,105000.0,3.31578044]
[1749914511817,0.1903573,105020.0,105010.0,0.1903717]
[1749914512017,0.1903573,105020.0,105010.0,1.1141215]
[1749914512218,0.2818573,105020.0,105010.0,1.1141215]
[1749914513423,0.0309,105020.0,105010.0,1.27475208]
[1749914515323,0.0309,105020.0,105010.0,1.35105795]
[1749914515923,0.0309,105020.0,105010.0,1.27475208]
[1749914516924,0.2212537,105020.0,105010.0,1.27475208]
[1749914517326,0.2525537,105020.0,105010.0,1.27475208]
[1749914518624,0.2525536,105020.0,105010.0,1.27475208]
[1749914520826,0.2525536,105020.0,105010.0,1.34982414]